bitfinex-derivatives/quotes_BTCF0:USTF0_20260119
["timestamp","ask_amount","ask_price","bid_price","bid_amount"]
[1768804778327,0.09848757,92542.0,92530.0,0.00016211]
[1768804778624,0.11134696,92536.0,92525.0,0.010813]
[1768804778822,0.11134696,92535.0,92523.0,0.09732]
[1768804779740,0.11134696,92535.0,92524.0,0.010813]
[1768804779938,0.09185751,92535.0,92524.0,0.010813]
[1768804780135,0.09185751,92535.0,92527.0,0.010813]
[1768804780442,0.09185751,92541.0,92527.0,0.010813]
[1768804780831,0.00237725,92544.0,92530.0,0.010813]
[1768804781034,0.11372421,92544.0,92530.0,0.010813]
[1768804781837,0.01948945,92543.0,92530.0,0.010813]
[1768804782039,0.11134696,92543.0,92530.0,0.010813]
[1768804782838,0.01948945,92540.0,92525.0,0.010813]
[1768804783040,0.11134696,92540.0,92525.0,0.010813]
[1768804783442,0.11134696,92540.0,92523.0,0.09732]
[1768804783847,0.11134696,92540.0,92527.0,0.010813]
[1768804784742,0.11134696,92540.0,92535.0,0.35]
[1768804787736,0.09185751,92540.0,92535.0,0.35]
[1768804788846,0.11372421,92544.0,92535.0,0.35]
[1768804789041,0.00237725,92544.0,92535.0,0.35]
[1768804789742,0.01958796,92548.0,92535.0,0.35]
[1768804790043,0.09732,92549.0,92539.0,0.010812]
[1768804790238,0.09732,92549.0,92535.0,0.290812]
[1768804790543,0.01948945,92548.0,92535.0,0.290812]
[1768804790942,0.01948945,92546.0,92535.0,0.290812]
[1768804791249,0.010811,92545.0,92535.0,0.290812]
[1768804791540,0.01948945,92544.0,92535.0,0.290812]
[1768804791941,0.11134696,92545.0,92535.0,0.290812]
[1768804792136,0.01948945,92544.0,92535.0,0.290812]
[1768804793941,0.1184128,92541.0,92535.0,0.24575962]
[1768804794336,0.0960442,92541.0,92535.0,0.24575962]
[1768804796642,0.0960442,92541.0,92530.0,0.00016211]
[1768804796847,0.1184128,92541.0,92530.0,0.00016211]
[1768804798044,0.0960442,92541.0,92530.0,0.00016211]
[1768804799551,0.1068552,92546.0,92530.0,0.00016211]
[1768804799752,0.1292238,92546.0,92530.0,0.00016211]
[1768804800053,0.0223686,92544.0,92530.0,0.00016211]
[1768804800250,0.0960442,92543.0,92530.0,0.00016211]
[1768804800442,0.1068552,92543.0,92530.0,0.00016211]
[1768804800643,0.0223686,92542.0,92530.0,0.00016211]
[1768804800843,0.0960442,92543.0,92530.0,0.00016211]
[1768804802153,0.09732,92547.0,92531.0,0.010813]
[1768804802340,0.09732,92547.0,92532.0,0.02246665]
[1768804802747,0.09732,92547.0,92530.0,0.01097511]
[1768804802947,0.2265438,92547.0,92530.0,0.00016211]
[1768804803148,0.0960442,92546.0,92530.0,0.00016211]
[1768804803446,0.1184128,92546.0,92530.0,0.00016211]
[1768804804662,0.1184128,92546.0,92531.0,0.010813]
[1768804805457,0.0960442,92546.0,92533.0,0.010812]
[1768804805759,0.09732,92547.0,92531.0,0.02246665]
[1768804806460,0.09732,92547.0,92534.0,0.010812]
[1768804807053,0.2157328,92547.0,92530.0,0.15669379]
[1768804807257,0.2157328,92547.0,92530.0,0.010813]
[1768804807454,0.2157328,92547.0,92530.0,0.15669379]
[1768804807654,0.1184128,92547.0,92530.0,0.15669379]
[1768804807855,0.1184128,92547.0,92530.0,0.010813]
[1768804808059,0.1184128,92547.0,92530.0,0.15669379]
[1768804808460,0.00016211,92549.0,92534.0,0.010812]
[1768804808756,0.00016211,92549.0,92532.0,0.02246665]
[1768804808950,0.00016211,92549.0,92532.0,0.03327865]
[1768804809149,0.00016211,92549.0,92535.0,0.010812]
[1768804809347,0.00016211,92549.0,92539.0,0.14588079]
[1768804809558,0.08101169,92553.0,92540.0,0.02246665]
[1768804809855,0.0960442,92558.0,92541.0,0.010811]
[1768804810054,0.02410765,92557.0,92541.0,0.010811]
[1768804810254,0.02410765,92556.0,92541.0,0.010811]
[1768804810456,0.02410765,92555.0,92541.0,0.010811]
[1768804810659,0.0960442,92558.0,92541.0,0.010811]
[1768804810660,0.02410765,92554.0,92541.0,0.010811]
[1768804810863,0.0960442,92558.0,92541.0,0.010811]
[1768804811053,0.02410517,92557.0,92541.0,0.010811]
[1768804811250,0.02410517,92556.0,92541.0,0.010811]
[1768804811453,0.02410517,92555.0,92543.0,0.010811]
[1768804811650,0.02410517,92554.0,92543.0,0.010811]
[1768804811861,0.0960442,92558.0,92543.0,0.010811]
[1768804812061,0.02410312,92557.0,92543.0,0.010811]
[1768804812261,0.02410312,92556.0,92543.0,0.010811]
[1768804812464,0.02410312,92555.0,92543.0,0.010811]
[1768804812652,0.02410312,92555.0,92540.0,0.16834744]
[1768804812653,0.02410312,92554.0,92540.0,0.16834744]
[1768804812849,0.0960442,92558.0,92543.0,0.010811]
[1768804813064,0.0241023,92557.0,92543.0,0.010811]
[1768804813257,0.0241023,92556.0,92543.0,0.010811]
[1768804813463,0.0241023,92555.0,92543.0,0.010811]
[1768804813665,0.0960442,92558.0,92543.0,0.010811]
[1768804813864,0.02410102,92557.0,92543.0,0.010811]
[1768804814058,0.02410102,92556.0,92543.0,0.010811]
[1768804814251,0.0960442,92558.0,92540.0,0.16834744]
[1768804814464,0.02409916,92557.0,92540.0,0.16834744]
[1768804814663,0.02409916,92556.0,92540.0,0.16834744]
[1768804814964,0.0960442,92558.0,92544.0,0.010811]
[1768804815164,0.0240992,92557.0,92544.0,0.010811]
[1768804815364,0.0960442,92558.0,92544.0,0.010811]
[1768804815365,0.0240992,92556.0,92544.0,0.010811]
[1768804815665,0.1184128,92549.0,92533.0,0.108132]
[1768804815868,0.1184128,92548.0,92533.0,0.09732]
[1768804816059,0.0223686,92547.0,92531.0,0.00016211]
[1768804816260,0.1184128,92544.0,92532.0,0.09732]
[1768804817161,0.1184128,92544.0,92533.0,0.010812]
[1768804819067,0.1184128,92544.0,92532.0,0.09732]
[1768804819572,0.1184128,92541.0,92532.0,0.09732]
[1768804821164,0.0223686,92540.0,92531.0,0.00016211]
[1768804821366,0.1184128,92540.0,92531.0,0.00016211]
[1768804821773,0.0960442,92540.0,92531.0,0.00016211]
[1768804823375,0.0960442,92540.0,92532.0,0.010813]
[1768804824674,0.0960442,92540.0,92534.0,0.010812]
[1768804824874,0.03077025,92542.0,92534.0,0.010812]
[1768804825067,0.03077025,92549.0,92534.0,0.010812]
[1768804825264,0.03077025,92549.0,92531.0,0.00016211]
[1768804826278,0.03077025,92549.0,92541.0,0.010811]
[1768804826975,0.03077025,92552.0,92541.0,0.010811]
[1768804828461,0.03077025,92552.0,92538.0,0.010812]
[1768804830079,0.09732,92553.0,92540.0,0.15669179]
[1768804830278,0.09732,92553.0,92540.0,0.010811]
[1768804831779,0.09732,92553.0,92540.0,0.15669179]
[1768804831983,0.09732,92553.0,92543.0,0.010811]
[1768804833678,0.09538058,92559.0,92543.0,0.14588079]
[1768804833982,0.12615083,92565.0,92550.0,0.01081]
[1768804834182,0.02401987,92564.0,92546.0,0.040926]
[1768804834378,0.12615083,92565.0,92550.0,0.14588079]
[1768804835781,0.12615083,92563.0,92550.0,0.14588079]
[1768804835983,0.03077025,92559.0,92544.0,0.09732]
[1768804836183,0.03077025,92555.0,92544.0,0.09732]
[1768804836578,0.03077025,92550.0,92537.0,0.010812]
[1768804836786,0.09538058,92551.0,92539.0,0.010812]
[1768804836983,0.03077025,92554.0,92541.0,0.010811]
[1768804837174,0.03077025,92556.0,92541.0,0.010811]
[1768804837382,0.03077025,92556.0,92544.0,0.010811]
[1768804838084,0.03077025,92556.0,92540.0,0.15669179]
[1768804838787,0.03077025,92556.0,92543.0,0.010811]
[1768804839388,0.09538058,92557.0,92543.0,0.010811]
[1768804839586,0.09538058,92557.0,92540.0,0.14588079]
[1768804840491,0.09538058,92557.0,92544.0,0.010811]
[1768804841589,0.03351789,92560.0,92544.0,0.010811]
[1768804842092,0.03351789,92560.0,92540.0,0.14588079]
[1768804842293,0.03351789,92560.0,92541.0,0.03659308]
[1768804842494,0.03351789,92560.0,92548.0,0.010811]
[1768804845097,0.03351789,92564.0,92551.0,0.01081]
[1768804845401,0.03351789,92565.0,92551.0,0.01081]
[1768804845605,0.03351789,92564.0,92551.0,0.01081]
[1768804846001,0.09728,92566.0,92548.0,0.010811]
[1768804846002,0.03351789,92561.0,92548.0,0.010811]
[1768804846202,0.03351789,92561.0,92550.0,0.14588079]
[1768804847198,0.09776381,92562.0,92551.0,0.01081]
[1768804849609,0.1312817,92563.0,92545.0,0.09728]
[1768804849906,0.1312817,92563.0,92551.0,0.01081]
[1768804851008,0.09728,92566.0,92551.0,0.01081]
[1768804851201,0.09728,92566.0,92550.0,0.14588079]
[1768804851399,0.09728,92566.0,92551.0,0.01081]
[1768804852005,0.09728,92566.0,92553.0,0.01081]
[1768804852804,0.09728,92566.0,92550.0,0.14588079]
[1768804853109,0.03351789,92568.0,92550.0,0.14588079]
[1768804853506,0.03351789,92568.0,92554.0,0.01081]
[1768804853907,0.12478095,92565.0,92549.0,0.01081]
[1768804854111,0.03590611,92564.0,92550.0,0.14588079]
[1768804854810,0.03590611,92564.0,92549.0,0.01081]
[1768804855210,0.03590611,92564.0,92550.0,0.14588079]
[1768804855913,0.03590611,92564.0,92551.0,0.01081]
[1768804858213,0.08887484,92565.0,92551.0,0.01081]
[1768804858412,0.03590611,92564.0,92551.0,0.01081]
[1768804859514,0.08887484,92565.0,92551.0,0.01081]
[1768804860514,0.12478095,92565.0,92551.0,0.01081]
[1768804861112,0.03590611,92575.0,92560.0,0.010809]
[1768804861312,0.02399451,92574.0,92565.0,0.14588079]
[1768804861512,0.12478095,92583.0,92571.0,0.010808]
[1768804861716,0.02396664,92582.0,92571.0,0.010808]
[1768804862017,0.12478095,92583.0,92571.0,0.010808]
[1768804862317,0.13318611,92587.0,92571.0,0.010808]
[1768804862516,0.13318611,92587.0,92570.0,0.14588079]
[1768804862716,0.03828233,92584.0,92570.0,0.14588079]
[1768804863510,0.03828233,92584.0,92570.0,0.15668879]
[1768804864512,0.03828233,92584.0,92568.0,0.00016211]
[1768804864818,0.03828233,92584.0,92570.0,0.14588079]
[1768804866219,0.03828233,92584.0,92571.0,0.010808]
[1768804866724,0.00237622,92584.0,92571.0,0.010808]
[1768804868924,0.00237622,92584.0,92573.0,0.010808]
[1768804869222,0.03828233,92584.0,92569.0,0.010808]
[1768804871417,0.03828233,92584.0,92573.0,0.010808]
[1768804871922,0.03828233,92584.0,92570.0,0.010808]
[1768804873421,0.03828233,92584.0,92555.0,0.09728]
[1768804873422,0.03590611,92567.0,92555.0,0.09728]
[1768804873621,0.03590611,92566.0,92555.0,0.09728]
[1768804873918,0.03590611,92562.0,92550.0,0.09728]
[1768804874418,0.03590611,92562.0,92550.0,0.10809]
[1768804874616,0.08887484,92563.0,92550.0,0.10809]
[1768804875019,0.00016211,92565.0,92550.0,0.10809]
[1768804875825,0.00016211,92565.0,92550.0,0.11911071]
[1768804876227,0.00016211,92565.0,92550.0,0.10809]
[1768804878428,0.00016211,92565.0,92553.0,0.01081]
[1768804879329,0.03590611,92573.0,92556.0,0.01081]
[1768804879531,0.03590611,92572.0,92556.0,0.01081]
[1768804880223,0.08887484,92573.0,92554.0,0.03506367]
[1768804880424,0.03590611,92576.0,92555.0,0.03506367]
[1768804880730,0.03590611,92576.0,92561.0,0.010809]
[1768804880934,0.08887484,92579.0,92561.0,0.010809]
[1768804881232,0.12478095,92579.0,92558.0,0.03506367]
[1768804881432,0.03590611,92578.0,92558.0,0.03506367]
[1768804881822,0.03590611,92578.0,92559.0,0.010809]
[1768804882329,0.03590611,92578.0,92559.0,0.04587267]
[1768804883433,0.03590611,92578.0,92562.0,0.010809]
[1768804883729,0.09728,92582.0,92566.0,0.04145416]
[1768804884330,0.09728,92582.0,92564.0,0.06727885]
[1768804884828,0.11075339,92584.0,92564.0,0.06727885]
[1768804885019,0.02394324,92583.0,92564.0,0.11954201]
[1768804885222,0.02394324,92582.0,92564.0,0.11954201]
[1768804885423,0.11075339,92584.0,92564.0,0.11954201]
[1768804885622,0.02394471,92583.0,92564.0,0.11954201]
[1768804885831,0.02394471,92582.0,92564.0,0.11954201]
[1768804886033,0.11075339,92584.0,92564.0,0.11954201]
[1768804886331,0.02394471,92583.0,92564.0,0.11954201]
[1768804886532,0.02394471,92582.0,92564.0,0.11954201]
[1768804886733,0.11075339,92584.0,92564.0,0.11954201]
[1768804886934,0.02394598,92583.0,92564.0,0.11954201]
[1768804887138,0.02394598,92582.0,92564.0,0.11954201]
[1768804887326,0.11075339,92584.0,92564.0,0.11954201]
[1768804887630,0.02394772,92583.0,92569.0,0.04145416]
[1768804887833,0.00237622,92584.0,92573.0,0.04145416]
[1768804888427,0.00237622,92584.0,92569.0,0.10873301]
[1768804888737,0.00237622,92584.0,92569.0,0.10889512]
[1768804889426,0.00237622,92584.0,92570.0,0.010808]
[1768804889633,0.00237622,92584.0,92571.0,0.04145416]
[1768804890829,0.00237622,92584.0,92572.0,0.010808]
[1768804891228,0.00237622,92584.0,92571.0,0.04145416]
[1768804894038,0.00237622,92584.0,92572.0,0.010808]
[1768804894641,0.00237622,92584.0,92571.0,0.04145416]
[1768804896434,0.00237622,92584.0,92570.0,0.06727885]
[1768804896634,0.00237622,92584.0,92569.0,0.00016211]
[1768804896635,0.01318222,92584.0,92569.0,0.00016211]
[1768804897030,0.05386554,92584.0,92569.0,0.00016211]
[1768804897236,0.10837717,92574.0,92553.0,0.05226416]
[1768804897438,0.04068332,92573.0,92555.0,0.01081]
[1768804897840,0.04068332,92573.0,92555.0,0.05226416]
[1768804898044,0.06769385,92574.0,92557.0,0.01081]
[1768804898232,0.06769385,92574.0,92554.0,0.09728]
[1768804898438,0.04068332,92579.0,92559.0,0.010809]
[1768804898637,0.10837717,92579.0,92559.0,0.010809]
[1768804898837,0.03543794,92578.0,92559.0,0.010809]
[1768804900847,0.09528893,92578.0,92558.0,0.04145416]
[1768804901548,0.03543794,92577.0,92558.0,0.04145416]
[1768804902048,0.09528893,92577.0,92558.0,0.04145416]
[1768804902248,0.09528893,92577.0,92558.0,0.05226316]
[1768804902848,0.03543794,92576.0,92558.0,0.05226316]
[1768804903240,0.03543794,92576.0,92558.0,0.010809]
[1768804903842,0.09528893,92576.0,92558.0,0.010809]
[1768804905047,0.09528893,92567.0,92548.0,0.03569708]
[1768804905247,0.03543794,92561.0,92546.0,0.09728]
[1768804905448,0.05985099,92558.0,92546.0,0.09728]
[1768804905647,0.05985099,92558.0,92540.0,0.03569708]
[1768804905849,0.03543794,92556.0,92541.0,0.010811]
[1768804907563,0.03543794,92555.0,92538.0,0.09728]
[1768804908350,0.03543794,92554.0,92538.0,0.09728]
[1768804908555,0.03543794,92550.0,92538.0,0.09728]
[1768804909661,0.05985099,92551.0,92538.0,0.09728]
[1768804912762,0.01081,92557.0,92538.0,0.09728]
[1768804912763,0.0547893,92556.0,92538.0,0.09728]
[1768804912964,0.08807465,92556.0,92538.0,0.108092]
[1768804916074,0.0547893,92556.0,92541.0,0.010811]
[1768804921165,0.0547893,92556.0,92538.0,0.12865619]
[1768804921366,0.03328535,92561.0,92543.0,0.010811]
[1768804921867,0.08807465,92561.0,92543.0,0.010811]
[1768804922268,0.08807465,92561.0,92540.0,0.04218819]
[1768804922476,0.03328535,92560.0,92540.0,0.04218819]
[1768804923277,0.09728,92559.0,92540.0,0.04218819]
[1768804923470,0.08807465,92555.0,92538.0,0.09728]
[1768804924071,0.0547893,92555.0,92538.0,0.09728]
[1768804927778,0.0547893,92555.0,92539.0,0.010812]
[1768804928084,0.09728,92559.0,92543.0,0.03137619]
[1768804929683,0.09728,92559.0,92541.0,0.010811]
[1768804930176,0.09728,92559.0,92541.0,0.04218719]
[1768804932268,0.09728,92559.0,92543.0,0.04218719]
[1768804933687,0.09728,92559.0,92543.0,0.03137619]
[1768804933885,0.09728,92559.0,92543.0,0.04218719]
[1768804934973,0.09728,92559.0,92543.0,0.03137619]
[1768804935177,0.20064125,92560.0,92543.0,0.03137619]
[1768804935178,0.29792125,92560.0,92543.0,0.03137619]
[1768804935380,0.29792125,92560.0,92540.0,0.23989942]
[1768804935574,0.20064125,92560.0,92540.0,0.23989942]
[1768804935778,0.29792125,92560.0,92540.0,0.23989942]
[1768804935989,0.3271148,92560.0,92540.0,0.23989942]
[1768804937391,0.3271148,92560.0,92541.0,0.03137619]
[1768804938292,0.02756269,92559.0,92541.0,0.03137619]
[1768804939291,0.02756269,92559.0,92542.0,0.010811]
[1768804939494,0.29792125,92560.0,92542.0,0.010811]
[1768804940882,0.02659272,92559.0,92541.0,0.03137619]
[1768804941391,0.08138202,92559.0,92540.0,0.19771123]
[1768804941688,0.08138202,92559.0,92540.0,0.05185928]
[1768804943088,0.08138202,92559.0,92541.0,0.010811]
[1768804943293,0.0248912,92558.0,92541.0,0.010811]
[1768804946595,0.06771741,92558.0,92541.0,0.010811]
[1768804947096,0.06652878,92557.0,92541.0,0.010811]
[1768804947290,0.02322427,92555.0,92541.0,0.010811]
[1768804948591,0.04282621,92556.0,92537.0,0.02885708]
[1768804948901,0.04282621,92556.0,92541.0,0.010811]
[1768804953198,0.04282621,92556.0,92543.0,0.010811]
[1768804953690,0.04282621,92556.0,92540.0,0.15666395]
[1768804954303,0.01995074,92555.0,92540.0,0.15666395]
[1768804954799,0.04282621,92556.0,92540.0,0.15666395]
[1768804955594,0.04282621,92556.0,92540.0,0.14585195]
[1768804955800,0.01995074,92559.0,92543.0,0.010811]
[1768804957202,0.06277695,92559.0,92543.0,0.010811]
[1768804959905,0.06277695,92559.0,92540.0,0.18552103]
[1768804960800,0.00016211,92563.0,92546.0,0.02380375]
[1768804961107,0.02387987,92562.0,92546.0,0.02380375]
[1768804961300,0.00016211,92563.0,92545.0,0.03679711]
[1768804961496,0.02387919,92562.0,92542.0,0.02380375]
[1768804961697,0.01668397,92563.0,92542.0,0.02380375]
[1768804961897,0.02387914,92562.0,92542.0,0.02380375]
[1768804962098,0.01668397,92563.0,92542.0,0.02380375]
[1768804962298,0.02387913,92562.0,92542.0,0.02380375]
[1768804962598,0.01668397,92563.0,92545.0,0.010811]
[1768804962912,0.02387964,92562.0,92545.0,0.010811]
[1768804963100,0.01668397,92563.0,92545.0,0.010811]
[1768804963306,0.02387936,92562.0,92545.0,0.010811]
[1768804963607,0.01668397,92563.0,92545.0,0.010811]
[1768804963911,0.02387931,92562.0,92545.0,0.010811]
[1768804964104,0.01468397,92563.0,92545.0,0.010811]
[1768804964305,0.0238793,92562.0,92545.0,0.01097311]
[1768804964507,0.05179961,92563.0,92549.0,0.01081]
[1768804964709,0.010802,92621.0,92550.0,0.1696557]
[1768804964710,0.03711564,92569.0,92550.0,0.1696557]
[1768804965002,0.09728,92570.0,92550.0,0.1696557]
[1768804965003,0.02387988,92568.0,92554.0,0.02380375]
[1768804965204,0.09728,92570.0,92554.0,0.02380375]
[1768804965205,0.09728,92570.0,92554.0,0.03461375]
[1768804966004,0.24313195,92570.0,92550.0,0.06060086]
[1768804966508,0.01192757,92569.0,92550.0,0.06060086]
[1768804969318,0.01192757,92569.0,92550.0,0.07141086]
[1768804970821,0.01192757,92569.0,92550.0,0.21726281]
[1768804973119,0.01192757,92569.0,92551.0,0.02406775]
[1768804973521,0.13439564,92570.0,92552.0,0.01081]
[1768804973722,0.13439564,92570.0,92552.0,0.03487775]
[1768804973925,0.28024759,92570.0,92552.0,0.03487775]
[1768804974112,0.18296759,92570.0,92552.0,0.03487775]
[1768804974317,0.03711564,92570.0,92553.0,0.02406775]
[1768804974518,0.18296759,92570.0,92553.0,0.02406775]
[1768804974819,0.0238591,92569.0,92553.0,0.02406775]
[1768804975024,0.18296759,92570.0,92553.0,0.02406775]
[1768804975223,0.02385914,92569.0,92553.0,0.02406775]
[1768804975430,0.18296759,92570.0,92553.0,0.02406775]
[1768804975724,0.0238588,92569.0,92553.0,0.02406775]
[1768804975920,0.18296759,92570.0,92554.0,0.01081]
[1768804976119,0.02385879,92569.0,92554.0,0.01081]
[1768804976320,0.03711564,92570.0,92554.0,0.01081]
[1768804976520,0.02385846,92569.0,92554.0,0.01081]
[1768804976719,0.03711564,92570.0,92554.0,0.01081]
[1768804976912,0.02385844,92569.0,92554.0,0.01081]
[1768804977113,0.02385844,92569.0,92507.0,0.19246103]
[1768804977114,0.02242516,92566.0,92507.0,0.19246103]
[1768804977316,0.02184277,92517.0,92493.0,0.03459721]
[1768804977511,0.14585195,92510.0,92493.0,0.03459721]
[1768804977722,0.14585195,92510.0,92497.0,0.4032359]
[1768804977924,0.14585195,92510.0,92494.0,0.03459721]
[1768804977925,0.14585195,92510.0,92498.0,0.09728]
[1768804978128,0.09728,92526.0,92501.0,0.03459721]
[1768804978129,0.01821839,92522.0,92501.0,0.03459721]
[1768804978327,0.14585195,92520.0,92502.0,0.03459721]
[1768804978521,0.00016211,92513.0,92502.0,0.03459721]
[1768804978833,0.00016211,92513.0,92503.0,0.4032359]
[1768804979332,0.00016211,92513.0,92504.0,0.4032359]
[1768804979532,0.00016211,92513.0,92503.0,0.4032359]
[1768804979914,1.1e-07,92513.0,92505.0,0.43783311]
[1768804980224,1.1e-07,92513.0,92505.0,0.05866496]
[1768804980423,1.1e-07,92513.0,92506.0,0.4032359]
[1768804980825,1.1e-07,92513.0,92504.0,0.09728]
[1768804981527,1.1e-07,92513.0,92509.0,0.43783311]
[1768804981725,1.1e-07,92513.0,92510.0,0.03459721]
[1768804982132,1.1e-07,92513.0,92512.0,0.4032359]
[1768804986425,0.14585195,92530.0,92513.0,0.03459721]
[1768804986625,0.05851857,92530.0,92515.0,0.03459721]
[1768804986929,0.02446671,92534.0,92516.0,0.03459721]
[1768804987128,0.05949047,92535.0,92517.0,0.03459721]
[1768804987327,0.06989126,92538.0,92517.0,0.03459721]
[1768804987524,0.02446671,92537.0,92517.0,0.03459721]
[1768804987730,0.02446671,92537.0,92517.0,0.13191721]
[1768804987925,0.02446671,92537.0,92518.0,0.03459721]
[1768804988728,0.02446671,92542.0,92522.0,0.04541121]
[1768804988932,0.02446671,92542.0,92524.0,0.03459721]
[1768804989238,0.03527771,92542.0,92524.0,0.03459721]
[1768804989438,0.09415722,92542.0,92524.0,0.03475932]
[1768804989926,0.02998121,92541.0,92524.0,0.03475932]
[1768804990126,0.09415722,92542.0,92524.0,0.03475932]
[1768804990326,0.02998099,92541.0,92524.0,0.03475932]
[1768804990633,0.09415722,92542.0,92524.0,0.03475932]
[1768804990830,0.02998114,92541.0,92524.0,0.03475932]
[1768804991035,0.09415722,92542.0,92524.0,0.03475932]
[1768804991234,0.02998118,92541.0,92524.0,0.03475932]
[1768804991435,0.09415722,92542.0,92524.0,0.03475932]
[1768804991734,0.02998153,92541.0,92524.0,0.03475932]
[1768804991933,0.09415722,92542.0,92524.0,0.03475932]
[1768804992136,0.02998153,92541.0,92524.0,0.03475932]
[1768804992330,0.010812,92537.0,92524.0,0.00016211]
[1768804993036,0.02446671,92539.0,92524.0,0.00016211]
[1768804993722,0.03527871,92538.0,92524.0,0.00016211]
[1768804995133,0.02446671,92538.0,92524.0,0.00016211]
[1768804995339,0.02446671,92541.0,92524.0,0.00016211]
[1768804995539,0.05445616,92540.0,92524.0,0.00016211]
[1768804995739,0.02998945,92539.0,92524.0,0.00016211]
[1768804995931,0.02446671,92540.0,92524.0,0.00016211]
[1768804996135,0.02998953,92539.0,92524.0,0.00016211]
[1768804996433,0.02446671,92540.0,92524.0,0.00016211]
[1768804996635,0.02999401,92539.0,92524.0,0.00016211]
[1768804996827,0.02446671,92540.0,92524.0,0.00016211]
[1768804997032,0.05446068,92539.0,92524.0,0.00016211]
[1768804997227,0.02999924,92538.0,92524.0,0.00016211]
[1768804997436,0.02446671,92539.0,92524.0,0.00016211]
[1768804997739,0.02999925,92538.0,92524.0,0.00016211]
[1768804997929,0.02446671,92539.0,92524.0,0.00016211]
[1768804998130,0.02999919,92538.0,92524.0,0.00016211]
[1768804998330,0.02446671,92539.0,92524.0,0.00016211]
[1768804998634,0.03000525,92538.0,92524.0,0.00016211]
[1768804998833,0.02446671,92539.0,92524.0,0.00016211]
[1768804999033,0.03000528,92538.0,92524.0,0.00016211]
[1768804999237,0.03000817,92537.0,92524.0,0.00016211]
[1768804999436,0.02446671,92539.0,92524.0,0.00016211]
[1768804999630,0.03001235,92538.0,92524.0,0.00016211]
[1768804999836,0.03001235,92537.0,92524.0,0.00016211]
[1768805000044,0.02446671,92539.0,92524.0,0.00016211]
[1768805000337,0.03001525,92538.0,92524.0,0.00016211]
[1768805000542,0.02446671,92539.0,92524.0,0.00016211]
[1768805000543,0.03001525,92537.0,92524.0,0.00016211]
[1768805000745,0.05887951,92542.0,92527.0,0.4032359]
[1768805001043,0.05448738,92541.0,92524.0,0.40339801]
[1768805001243,0.05448738,92540.0,92525.0,0.010813]
[1768805001539,0.03002067,92539.0,92527.0,0.010813]
[1768805001739,0.02446671,92543.0,92527.0,0.010813]
[1768805001945,0.03003081,92542.0,92527.0,0.4140489]
[1768805002139,0.03003081,92541.0,92527.0,0.010813]
[1768805002335,0.03003081,92540.0,92527.0,0.010813]
[1768805002539,0.0369898,92544.0,92527.0,0.14006874]
[1768805002540,0.03003081,92539.0,92527.0,0.14006874]
[1768805002740,0.00237725,92544.0,92532.0,0.4032359]
[1768805002944,0.03004114,92543.0,92535.0,0.4032359]
[1768805003245,0.03004114,92542.0,92534.0,0.4032359]
[1768805003444,0.03004114,92541.0,92534.0,0.4032359]
[1768805003643,0.00237725,92544.0,92536.0,0.4032359]
[1768805003846,0.0300539,92543.0,92534.0,0.4032359]
[1768805004144,0.0300539,92542.0,92534.0,0.4032359]
[1768805004442,0.0300539,92541.0,92537.0,0.4032359]
[1768805004649,0.0300539,92540.0,92535.0,0.4032359]
[1768805004947,0.00237725,92544.0,92535.0,0.4032359]
[1768805005147,0.03006778,92543.0,92538.0,0.4032359]
[1768805005342,0.03006778,92542.0,92530.0,0.10507562]
[1768805005646,0.03006778,92541.0,92535.0,0.4032359]
[1768805005846,0.03006778,92540.0,92535.0,0.4032359]
[1768805006147,0.03006778,92539.0,92538.0,0.4032359]
[1768805006446,0.03006778,92543.0,92536.0,0.4032359]
[1768805006837,0.03006778,92543.0,92539.0,0.4032359]
[1768805007032,0.03006778,92543.0,92536.0,0.4032359]
[1768805007446,0.03006778,92543.0,92539.0,0.4032359]
[1768805007745,0.03006778,92543.0,92536.0,0.4032359]
[1768805007934,0.03006778,92543.0,92538.0,0.4032359]
[1768805008133,0.03006778,92543.0,92539.0,0.4032359]
[1768805008334,0.03006778,92543.0,92540.0,0.4032359]
[1768805008538,0.03006778,92543.0,92541.0,0.4032359]
[1768805008738,0.03006778,92543.0,92540.0,0.31563009]
[1768805008943,0.03006778,92543.0,92541.0,0.31563009]
[1768805009349,0.03006778,92543.0,92542.0,0.31563009]
[1768805009648,0.03006778,92543.0,92541.0,0.31563009]
[1768805010035,0.03146803,92561.0,92547.0,0.31563009]
[1768805010340,0.03146803,92561.0,92537.0,0.09732]
[1768805010341,0.04227703,92560.0,92542.0,0.10507562]
[1768805010540,0.010809,92560.0,92543.0,0.03193574]
[1768805010734,0.010809,92560.0,92545.0,0.31563009]
[1768805011047,0.010809,92560.0,92546.0,0.31563009]
[1768805011439,0.010809,92560.0,92543.0,0.03193574]
[1768805011440,0.010809,92560.0,92547.0,0.31563009]
[1768805011637,0.010809,92560.0,92546.0,0.31563009]
[1768805011842,0.010809,92560.0,92542.0,0.07313988]
[1768805012449,0.01081,92557.0,92546.0,0.31563009]
[1768805012650,0.04227803,92557.0,92546.0,0.31563009]
[1768805012945,0.04227803,92557.0,92538.0,0.010812]
[1768805013349,0.04227803,92557.0,92546.0,0.31563009]
[1768805013553,0.04227803,92557.0,92545.0,0.31563009]
[1768805013950,0.04227803,92557.0,92549.0,0.31563009]
[1768805014152,0.04227803,92557.0,92546.0,0.31563009]
[1768805014450,0.03146803,92552.0,92544.0,0.31563009]
[1768805014851,0.03125412,92556.0,92548.0,0.27920802]
[1768805015046,0.03125412,92556.0,92545.0,0.27920802]
[1768805015552,0.01081,92555.0,92548.0,0.27920802]
[1768805015852,0.01081,92555.0,92545.0,0.27920802]
[1768805016051,0.01081,92555.0,92546.0,0.27920802]
[1768805016450,0.01081,92555.0,92549.0,0.27920802]
[1768805016651,0.01081,92555.0,92546.0,0.27920802]
[1768805017049,0.01081,92555.0,92549.0,0.27920802]
[1768805017248,0.01081,92555.0,92546.0,0.27920802]
[1768805017753,0.01081,92555.0,92549.0,0.27920802]
[1768805018049,0.03125412,92556.0,92546.0,0.27920802]
[1768805018450,0.03125412,92556.0,92549.0,0.27920802]
[1768805018655,0.03125412,92556.0,92546.0,0.27920802]
[1768805019054,0.01081,92557.0,92549.0,0.27920802]
[1768805019360,0.03642158,92554.0,92545.0,0.26289958]
[1768805019545,0.10525919,92554.0,92539.0,0.09732]
[1768805020145,0.10588735,92554.0,92539.0,0.09732]
[1768805020346,0.01143816,92554.0,92539.0,0.09732]
[1768805020551,0.01081,92554.0,92539.0,0.09732]
[1768805021959,0.02913253,92553.0,92539.0,0.09732]
[1768805022158,0.02913253,92552.0,92539.0,0.09732]
[1768805022461,0.02913253,92551.0,92539.0,0.09732]
[1768805022657,0.02913253,92550.0,92539.0,0.09732]
[1768805022849,0.02913253,92549.0,92539.0,0.09732]
[1768805023051,0.02913253,92548.0,92539.0,0.09732]